bitfinex/quotes_SOLUSD_20240620
["timestamp","ask_amount","ask_price","bid_price","bid_amount"]
[1718904459907,0.82163197,134.01,133.92,20.0]
[1718904460304,0.82163197,134.01,133.93,45.0]
[1718904460517,0.82163197,134.01,133.94,20.0]
[1718904462125,22.8621,134.02,133.94,20.0]
[1718904462623,0.82163197,134.01,133.92,20.0]
[1718904462829,0.82163197,134.01,133.93,45.0]
[1718904463002,0.82163197,134.01,133.94,20.0]
[1718904467230,0.82163197,134.01,133.95,1.51986293]
[1718904467396,16.5255,134.0,133.94,20.0]
[1718904467602,6.5439,133.98,133.9,20.0]
[1718904468631,6.5439,133.98,133.9,42.47]
[1718904468947,6.5439,133.98,133.91,45.0]
[1718904469103,6.5439,133.98,133.92,20.0]
[1718904469304,6.5439,133.98,133.93,45.0]
[1718904469600,6.5439,133.98,133.94,20.0]
[1718904472044,6.5439,133.98,133.91,20.0]
[1718904472321,6.5439,133.98,133.9,20.0]
[1718904473424,6.5439,133.98,133.91,45.0]
[1718904473614,6.5439,133.98,133.92,20.0]
[1718904475427,15.029,133.96,133.92,20.0]
[1718904475651,15.029,133.96,133.9,20.0]
[1718904477420,6.5641,133.95,133.9,20.0]
[1718904478921,6.5641,133.95,133.91,45.0]
[1718904479131,6.5641,133.95,133.92,20.0]
[1718904480428,6.5641,133.95,133.9,20.0]
[1718904482419,6.5641,133.95,133.87,20.0]
[1718904482734,6.5641,133.95,133.88,45.0]
[1718904482909,6.5641,133.95,133.89,20.0]
[1718904483228,6.5641,133.95,133.89,48.14]
[1718904483431,6.5641,133.95,133.9,45.0]
[1718904483634,6.5641,133.95,133.91,20.0]
[1718904484429,15.029,133.96,133.92,73.14]
[1718904484629,15.029,133.96,133.93,20.0]
[1718904487039,6.3645,133.98,133.93,20.0]
[1718904487335,15.0883,134.0,133.94,67.47]
[1718904487537,15.0883,134.0,133.95,48.14]
[1718904487833,15.0883,134.0,133.96,45.0]
[1718904488016,15.0883,134.0,133.97,20.0]
[1718904489535,6.5184,134.01,133.97,20.0]
[1718904491310,6.5184,134.01,133.96,20.0]
[1718904496027,6.5184,134.01,133.93,48.14]
[1718904496246,6.5184,134.01,133.94,45.0]
[1718904496538,6.5184,134.01,133.95,20.0]
[1718904497740,6.5184,134.01,133.94,20.0]
[1718904498236,0.82163197,134.0,133.94,20.0]
[1718904498938,16.5283,133.99,133.94,20.0]
[1718904499241,16.5283,133.99,133.91,20.0]
[1718904500139,16.5283,133.99,133.92,45.0]
[1718904500347,16.5283,133.99,133.93,20.0]
[1718904501240,16.5283,133.99,133.93,42.47]
[1718904501457,16.5283,133.99,133.94,45.0]
[1718904501629,6.5184,134.01,133.96,28.14]
[1718904501939,6.5184,134.01,133.97,20.0]
[1718904502624,6.5184,134.01,133.98,45.0]
[1718904502824,6.5184,134.01,133.99,20.0]
[1718904505238,22.6723,134.04,133.99,20.0]
[1718904507131,0.82163197,134.03,133.99,20.0]
[1718904507334,0.82163197,134.03,133.94,48.14]
[1718904507940,22.6723,134.04,133.97,28.14]
[1718904508142,22.6723,134.04,133.98,20.0]
[1718904514338,22.6723,134.04,133.98,42.47]
[1718904514557,22.6723,134.04,133.99,67.47]
[1718904514856,22.6723,134.04,134.0,20.0]
[1718904520254,22.6723,134.04,134.01,45.0]
[1718904520434,15.5243,134.07,134.02,20.0]
[1718904525849,17.28701035,134.07,134.02,20.0]
[1718904526044,17.28701035,134.07,133.97,20.0]
[1718904526446,0.94107838,134.06,133.97,20.0]
[1718904526646,1.76271035,134.06,133.97,20.0]
[1718904527046,6.3353,134.05,133.97,20.0]
[1718904527661,6.3353,134.05,133.97,42.47]
[1718904528171,6.3353,134.05,133.97,20.0]
[1718904528349,6.3353,134.05,133.98,45.0]
[1718904528546,6.3353,134.05,133.99,20.0]
[1718904536175,16.96893197,134.04,133.99,20.0]
[1718904536377,0.94532685,134.03,133.94,20.0]
[1718904536579,1.76695882,134.03,133.94,20.0]
[1718904537159,6.035,134.02,133.94,20.0]
[1718904537359,16.5074,134.0,133.96,9.38]
[1718904537562,16.5074,134.0,133.97,20.0]
[1718904538857,16.5074,134.0,133.97,29.38]
[1718904539485,16.5074,134.0,133.97,20.0]
[1718904539790,16.5074,134.0,133.92,42.47]
[1718904539961,16.5074,134.0,133.93,45.0]
[1718904540274,16.5074,134.0,133.94,20.0]
[1718904541580,16.5074,134.0,133.95,45.0]
[1718904541767,16.5074,134.0,133.96,20.0]
[1718904542567,16.5074,134.0,133.95,20.0]
[1718904542769,16.5074,134.0,133.91,70.95]
[1718904542977,16.5074,134.0,133.92,67.81]
[1718904543160,16.5074,134.0,133.93,42.47]
[1718904543361,16.5074,134.0,133.94,45.0]
[1718904543560,16.5074,134.0,133.95,20.0]
[1718904544560,16.5074,134.0,133.92,20.0]
[1718904544772,16.5074,134.0,133.93,45.0]
[1718904544963,16.5074,134.0,133.94,20.0]
[1718904545166,16.5074,134.0,133.95,45.0]
[1718904545377,16.5074,134.0,133.96,20.0]
[1718904545889,16.5074,134.0,133.92,42.47]
[1718904546184,16.5074,134.0,133.93,67.47]
[1718904546384,16.5074,134.0,133.94,20.0]
[1718904549085,16.5074,134.0,133.95,45.0]
[1718904549280,16.5074,134.0,133.96,20.0]
[1718904549782,6.035,134.02,133.97,67.47]
[1718904549988,0.94532685,134.03,133.99,22.47]
[1718904550170,21.715,134.06,134.0,65.0]
[1718904550489,21.715,134.06,134.0,20.0]
[1718904550877,21.715,134.06,133.98,20.0]
[1718904551083,21.715,134.06,133.99,45.0]
[1718904551266,21.715,134.06,134.0,20.0]
[1718904551468,21.715,134.06,133.98,20.0]
[1718904553579,21.715,134.06,133.98,42.47]
[1718904553888,21.715,134.06,133.99,45.0]
[1718904554093,21.715,134.06,134.0,20.0]
[1718904556487,21.715,134.06,133.98,20.0]
[1718904558196,0.82163197,134.05,133.97,20.0]
[1718904558375,0.82163197,134.05,133.98,45.0]
[1718904558672,0.82163197,134.05,133.99,20.0]
[1718904559386,10.20163197,134.05,133.99,29.38]
[1718904559687,9.38,134.04,133.99,9.38]
[1718904559892,9.38,134.04,134.0,20.0]
[1718904560279,10.20163197,134.05,134.0,20.0]
[1718904563215,15.8592,134.03,133.93,22.47]
[1718904563495,16.68083197,134.03,133.98,9.38]
[1718904564397,16.68083197,134.03,133.94,20.0]
[1718904564398,9.38,134.02,133.97,9.38]
[1718904564572,9.38,134.02,133.98,20.0]
[1718904564769,0.82163197,134.01,133.98,20.0]
[1718904565871,0.82163197,134.01,133.92,32.14313314]
[1718904565872,10.20163197,134.02,133.97,9.38]
[1718904566184,0.82163197,134.01,133.98,20.0]
[1718904566383,0.82163197,134.01,133.97,9.38]
[1718904567598,16.3959,134.0,133.96,9.38]
[1718904567794,16.3959,134.0,133.97,20.0]
[1718904572496,16.3959,134.0,133.99,9.38]
[1718904573489,16.3959,134.0,133.97,20.0]
[1718904573690,16.3959,134.0,133.97,9.38]
[1718904576577,16.3959,134.0,133.96,9.38]
[1718904576783,0.82163197,133.99,133.93,20.0]
[1718904576995,0.82163197,133.99,133.96,9.38]
[1718904577799,0.82163197,133.99,133.95,9.38]
[1718904578001,0.82163197,133.99,133.96,20.0]
[1718904580904,0.82163197,133.99,133.92,20.0]
[1718904580905,6.1219,133.98,133.92,20.0]
[1718904581203,6.94353197,133.98,133.93,9.38]
[1718904581404,6.94353197,133.98,133.94,20.0]
[1718904581992,6.94353197,133.98,133.93,9.38]
[1718904582196,6.94353197,133.98,133.94,20.0]
[1718904582611,6.94353197,133.98,133.94,29.38]
[1718904583008,6.1219,133.98,133.95,9.38]
[1718904585714,6.1219,133.98,133.94,20.0]
[1718904585910,6.1219,133.98,133.94,9.38]
[1718904588915,0.82163197,133.97,133.92,20.0]
[1718904589091,0.82163197,133.97,133.93,9.38]
[1718904589290,0.82163197,133.97,133.94,20.0]
[1718904590203,0.82163197,133.97,133.94,29.38]
[1718904590701,6.1219,133.98,133.94,29.38]
[1718904591017,6.1219,133.98,133.95,9.38]
[1718904593614,6.1219,133.98,133.94,29.38]
[1718904595694,6.1219,133.98,133.95,9.38]
[1718904596098,6.1219,133.98,133.96,9.38]
[1718904596512,6.1219,133.98,133.94,20.0]
[1718904596513,6.1219,133.98,133.95,9.38]
[1718904596719,6.1219,133.98,133.96,9.38]
[1718904597212,6.1219,133.98,133.94,20.0]
[1718904597410,6.1219,133.98,133.96,9.38]
[1718904597621,15.5044,133.96,133.85,32.2794]
[1718904597823,15.5044,133.96,133.91,9.38]
[1718904598124,15.5044,133.96,133.92,9.38]
[1718904599501,15.5044,133.96,133.91,9.38]
[1718904600217,0.82163197,133.95,133.91,9.38]
[1718904600424,10.20163197,133.95,133.9,9.38]
[1718904600614,0.82163197,133.95,133.89,9.38]
[1718904600926,0.82163197,133.95,133.86,20.0]
[1718904600927,15.5292,133.93,133.88,9.38]
[1718904601528,6.1492,133.93,133.88,9.38]
[1718904601724,15.5292,133.93,133.88,9.38]
[1718904601911,15.5292,133.93,133.84,44.06]
[1718904601912,15.3097,133.91,133.83,0.8043]
[1718904602105,15.3097,133.91,133.85,9.38]
[1718904602106,24.6897,133.91,133.85,9.38]
[1718904602306,0.82163197,133.9,133.85,9.38]
[1718904602817,9.38,133.9,133.85,9.38]
[1718904603013,16.13133197,133.91,133.85,9.38]
[1718904603322,25.51133197,133.91,133.85,9.38]
[1718904604806,6.1492,133.93,133.84,9.38]
[1718904605023,6.1492,133.93,133.89,9.38]
[1718904605221,6.1492,133.93,133.9,29.38]
[1718904605721,6.1492,133.93,133.85,45.0]
[1718904605925,15.5292,133.93,133.88,9.38]
[1718904606717,16.35083197,133.93,133.88,9.38]
[1718904606920,0.82163197,133.92,133.86,20.0]
[1718904607116,0.82163197,133.92,133.85,9.38]
[1718904607117,9.38,133.9,133.85,9.38]
[1718904607313,9.38,133.9,133.84,29.38]
[1718904607734,6.4499,133.88,133.83,10.1843]
[1718904607908,9.38,133.86,133.83,0.8043]
[1718904608416,9.38,133.85,133.83,0.8043]
[1718904609531,0.82163197,133.87,133.83,0.8043]
[1718904609908,6.4499,133.88,133.83,0.8043]
[1718904611122,16.2621,133.89,133.83,0.8043]
[1718904611310,16.2621,133.89,133.83,43.2643]
[1718904611510,22.1288,133.92,133.84,45.0]
[1718904611705,22.1288,133.92,133.85,20.0]
[1718904615328,0.82163197,133.94,133.86,0.17]
[1718904615531,6.4235,133.95,133.87,28.21]
[1718904615717,6.4235,133.95,133.88,20.0]
[1718904615918,6.4235,133.95,133.89,0.40208713]
[1718904616136,6.4235,133.95,133.89,1.89393219]
[1718904616323,6.4235,133.95,133.9,3.06747382]
[1718904616524,15.3363,133.96,133.91,3.06724475]
[1718904616733,6.4235,133.98,133.92,1.21970541]
[1718904616939,6.4235,133.98,133.91,65.0]
[1718904617329,6.4235,133.98,133.91,87.46]
[1718904617523,16.15793197,134.0,133.91,87.46]
[1718904617926,15.3363,134.0,133.91,87.46]
[1718904618241,22.35573197,134.04,133.94,22.46]
[1718904618417,22.35573197,134.04,133.95,24.14967146]
[1718904618617,0.82163197,134.03,133.95,20.0]
[1718904618928,21.5341,134.04,133.95,42.46]
[1718904619248,21.5341,134.04,133.96,45.0]
[1718904619551,21.5341,134.04,133.97,20.0]
[1718904619757,0.82163197,134.03,133.97,20.0]
[1718904620116,0.82163197,134.03,133.95,20.0]
[1718904622317,65.82163197,134.03,133.9,15.2579]
[1718904622538,65.82163197,134.03,133.91,20.0]
[1718904623045,65.82163197,134.03,133.9,37.7179]
[1718904623431,65.82163197,134.03,133.9,15.2579]
[1718904623948,65.82163197,134.03,133.9,37.7179]
[1718904624146,65.82163197,134.03,133.91,45.0]
[1718904624332,0.82163197,134.03,133.92,42.63]
[1718904624539,21.5341,134.04,133.94,50.67]
[1718904624842,6.479,134.04,133.96,22.46]
[1718904625046,0.82163197,134.06,133.97,35.2994]
[1718904625347,7.4618,134.02,133.98,45.0]
[1718904625544,7.4618,134.02,133.99,20.0]
[1718904626348,7.4611,134.03,133.99,20.0]
[1718904627046,7.4616,134.02,133.99,20.0]
[1718904627526,7.4616,134.02,133.98,20.0]
[1718904628548,7.463,134.0,133.98,20.0]
[1718904628745,0.82163197,134.06,133.95,20.0]
[1718904629046,7.4627,134.0,133.95,20.0]
[1718904632731,45.82163197,134.06,133.95,20.0]
[1718904632732,7.464,133.98,133.95,20.0]
[1718904632925,7.464,133.98,133.92,20.0]
[1718904633146,7.464,133.98,133.92,65.0]
[1718904633344,7.4644,133.97,133.92,65.0]
[1718904634080,7.4644,133.97,133.92,45.0]
[1718904634436,0.82163197,134.01,133.92,67.46]
[1718904635427,6.5075,134.04,133.94,22.46]
[1718904635628,7.32913197,134.04,133.95,87.46]
[1718904635833,7.32913197,134.04,133.96,20.0]
[1718904638460,6.5075,134.04,133.96,20.0]
[1718904638641,15.2778,134.05,133.97,83.3692]
[1718904638834,15.2778,134.05,133.98,20.0]
[1718904640354,15.2778,134.05,133.94,20.0]
[1718904641253,45.0,134.04,133.94,20.0]
[1718904641450,6.6302,134.02,133.94,20.0]
[1718904644059,15.1191,134.0,133.9,16.2107]
[1718904644261,45.82163197,133.99,133.91,20.0]
[1718904644436,6.3795,133.97,133.87,16.2107]
[1718904644642,0.82163197,133.96,133.87,16.2107]
[1718904646335,0.82163197,133.96,133.88,1.49148067]
[1718904646535,0.82163197,133.96,133.87,16.2107]
[1718904646757,15.7763,133.95,133.84,15.1356]
[1718904646949,0.82163197,133.94,133.84,15.1356]
[1718904647154,45.82163197,133.94,133.84,15.1356]
[1718904647363,45.82163197,133.94,133.85,20.0]
[1718904647555,6.1904,133.93,133.85,20.0]
[1718904647749,0.82163197,133.92,133.83,20.8043]
[1718904648662,16.148,133.91,133.83,20.8043]
[1718904648969,0.82163197,133.9,133.83,20.8043]
[1718904650043,45.82163197,133.9,133.83,20.8043]
[1718904650246,0.82163197,133.89,133.83,20.8043]
[1718904650463,6.0697,133.88,133.83,0.8043]
[1718904650653,0.82163197,133.87,133.83,0.8043]
[1718904650864,45.82163197,133.87,133.83,0.8043]
[1718904651177,0.82163197,133.87,133.83,0.8043]
[1718904651351,45.82163197,133.87,133.83,0.8043]
[1718904651740,45.82163197,133.87,133.72,22.46]
[1718904651741,15.8149,133.86,133.72,38.9727]
[1718904651941,6.3268,133.84,133.72,38.9727]
[1718904652145,0.82163197,133.83,133.72,38.9727]
[1718904653445,45.82163197,133.83,133.72,38.9727]
[1718904653650,0.82163197,133.82,133.72,38.9727]
[1718904654357,0.82163197,133.82,133.73,20.0]
[1718904654542,0.82163197,133.82,133.73,42.46]
[1718904654747,0.82163197,133.82,133.73,20.0]
[1718904654965,0.82163197,133.83,133.73,20.0]
[1718904655464,45.82163197,133.83,133.73,20.0]
[1718904655658,0.82163197,133.82,133.73,20.0]
[1718904656950,0.82163197,133.82,133.74,2.344291]
[1718904657155,0.82163197,133.83,133.74,47.344291]
[1718904657355,0.82163197,133.83,133.75,20.0]
[1718904657757,45.82163197,133.83,133.75,20.0]
[1718904657962,45.82163197,133.83,133.71,6.4504]
[1718904657963,0.82163197,133.82,133.72,20.0]
[1718904658951,15.1098,133.81,133.71,20.0]
[1718904659161,0.82163197,133.8,133.71,20.0]
[1718904659557,6.4019,133.79,133.71,20.0]
[1718904659759,0.82163197,133.78,133.7,20.0]
[1718904660050,0.82163197,133.78,133.67,28.9899]
[1718904660051,7.22353197,133.79,133.68,42.46]
[1718904660857,7.22353197,133.79,133.69,45.0]
[1718904661153,0.82163197,133.78,133.7,20.0]
[1718904661373,6.4019,133.79,133.7,42.46]
[1718904661584,15.1098,133.81,133.72,22.46]
[1718904661875,15.1098,133.81,133.73,87.8]
[1718904662050,15.1098,133.81,133.73,87.63]
[1718904663063,6.1684,133.83,133.74,0.34]
[1718904663274,6.1684,133.83,133.74,2.56599032]
[1718904663475,6.1684,133.83,133.75,22.63]
[1718904663664,6.1684,133.83,133.76,67.40469974]
[1718904663860,6.1684,133.83,133.77,65.0]
[1718904664168,6.1684,133.83,133.77,20.0]
[1718904664559,0.82163197,133.82,133.74,20.0]
[1718904665072,0.82163197,133.82,133.75,45.0]
[1718904665282,0.82163197,133.82,133.76,20.0]
[1718904665979,0.82163197,133.82,133.74,20.0]
[1718904666152,0.82163197,133.82,133.72,20.0]
[1718904667558,15.2256,133.81,133.72,20.0]
[1718904667755,45.82163197,133.8,133.68,7.485]
[1718904667963,6.86303197,133.79,133.67,22.675]
[1718904668561,6.86303197,133.79,133.68,22.46]
[1718904668968,6.0414,133.79,133.68,55.35]
[1718904669275,6.0414,133.79,133.7,22.46]
[1718904669482,0.82163197,133.78,133.71,20.0]
[1718904669654,6.0414,133.79,133.69,42.46]
[1718904669857,6.0414,133.79,133.7,0.17]
[1718904670469,6.0414,133.79,133.69,42.46]
[1718904670760,6.0414,133.79,133.7,45.0]
[1718904670986,6.0414,133.79,133.71,20.0]
[1718904672066,0.82163197,133.78,133.71,20.0]
[1718904672462,0.82163197,133.78,133.68,20.0]
[1718904672874,0.82163197,133.78,133.67,20.0]
[1718904673074,0.82163197,133.78,133.67,42.46]
[1718904673762,0.82163197,133.78,133.68,45.0]
[1718904674077,0.82163197,133.78,133.69,20.0]
[1718904674458,16.0846,133.77,133.69,20.0]
[1718904674656,0.82163197,133.76,133.69,20.0]
[1718904676065,6.1947,133.75,133.69,20.0]
[1718904676269,6.1947,133.75,133.66,20.0]
[1718904676270,15.049,133.73,133.66,20.0]
[1718904676608,15.049,133.73,133.64,22.46]
[1718904676609,0.82163197,133.72,133.64,50.7]
[1718904677192,15.049,133.73,133.64,50.7]
[1718904677388,15.049,133.73,133.63,0.8265353]
[1718904678362,15.049,133.73,133.63,23.2865353]
[1718904678562,15.049,133.73,133.64,20.0]
[1718904679986,15.049,133.73,133.63,20.8265353]
[1718904680186,15.049,133.73,133.64,45.0]
[1718904680378,15.049,133.73,133.65,20.0]
[1718904680689,6.5015,133.72,133.65,20.0]
[1718904680889,6.5015,133.7,133.63,0.8265353]
[1718904681183,0.82163197,133.69,133.63,0.8265353]
[1718904683197,15.996,133.68,133.63,0.8265353]
[1718904683494,0.82163197,133.67,133.63,0.8265353]
[1718904684068,15.996,133.68,133.63,0.8265353]
[1718904686394,6.4669,133.66,133.63,0.8265353]
[1718904687775,15.996,133.68,133.63,0.8265353]
[1718904687990,15.996,133.68,133.63,65.8265353]
[1718904688988,15.1652,133.71,133.64,1.67066744]
[1718904689289,15.1652,133.71,133.65,24.13055515]
[1718904689487,15.1652,133.71,133.66,87.46]
[1718904689690,15.1652,133.71,133.66,42.46]
[1718904689889,15.1652,133.71,133.67,45.0]
[1718904690084,15.1652,133.71,133.68,20.0]
[1718904691900,15.1385,133.77,133.69,100.59]
[1718904692217,15.1385,133.77,133.71,22.46]
[1718904692418,15.1385,133.77,133.72,87.46]
[1718904692884,15.1385,133.77,133.72,65.0]
[1718904693687,15.1385,133.77,133.72,20.0]
[1718904693878,15.1385,133.77,133.7,20.0]
[1718904694986,0.82163197,133.76,133.68,20.0]
[1718904695387,0.82163197,133.76,133.67,42.46]
[1718904695697,0.82163197,133.76,133.67,20.0]
[1718904696012,0.82163197,133.76,133.66,42.46]
[1718904696586,15.1385,133.77,133.66,42.46]
[1718904697520,15.1385,133.77,133.67,0.17]
[1718904697682,15.1385,133.77,133.68,22.46]
[1718904697990,15.1385,133.77,133.7,22.46]
[1718904698184,15.1385,133.77,133.71,42.8]
[1718904698393,15.1385,133.77,133.72,67.46]
[1718904698589,15.1385,133.77,133.73,20.0]
[1718904699801,15.1385,133.77,133.69,22.97]
[1718904699984,15.1385,133.77,133.7,87.46]
[1718904700186,15.1385,133.77,133.7,67.46]
[1718904700384,15.1385,133.77,133.71,20.0]
[1718904700788,15.1385,133.77,133.72,67.46]
[1718904700986,15.1385,133.77,133.73,20.0]
[1718904701497,6.1912,133.79,133.74,22.63]
[1718904701693,6.1912,133.79,133.75,65.0]
[1718904701900,6.1912,133.79,133.76,20.0]
[1718904702107,6.1912,133.79,133.73,42.46]
[1718904702402,6.1912,133.79,133.74,45.0]
[1718904702601,6.1912,133.79,133.75,20.0]
[1718904702796,16.6119,133.8,133.76,45.0]
[1718904702985,6.3083,133.82,133.77,20.0]
[1718904703183,6.3083,133.82,133.77,42.46]
[1718904703382,6.3083,133.82,133.78,45.0]
[1718904703700,6.3083,133.82,133.79,20.0]
[1718904705403,6.3083,133.82,133.77,20.0]
[1718904705905,6.3083,133.82,133.74,0.17]
[1718904706103,6.3083,133.82,133.75,0.17]
[1718904706404,6.3083,133.82,133.75,0.34]
[1718904706791,6.3083,133.82,133.75,87.8]
[1718904707388,6.3083,133.82,133.76,1.49283661]
[1718904708490,6.3083,133.82,133.75,87.8]
[1718904709491,6.3083,133.82,133.75,65.34]
[1718904709691,6.3083,133.82,133.75,87.8]
[1718904710111,6.3083,133.82,133.76,0.17]
[1718904710409,6.3083,133.82,133.76,0.34]
[1718904710718,6.3083,133.82,133.77,0.17]
[1718904711091,6.3083,133.82,133.77,0.34]
[1718904712599,6.3083,133.82,133.76,0.17]
[1718904712803,15.918,133.84,133.75,57.9263]
[1718904713118,6.3922,133.86,133.81,22.46]
[1718904713297,15.6424,133.88,133.83,22.46]
[1718904713611,15.6424,133.88,133.84,20.0]
[1718904714606,15.6424,133.88,133.83,22.46]
[1718904714804,15.6424,133.88,133.84,65.0]
[1718904715728,15.6424,133.88,133.84,87.46]
[1718904715899,15.6424,133.88,133.84,65.0]
[1718904716093,15.6424,133.88,133.84,20.0]
[1718904716396,15.6424,133.88,133.81,20.0]
[1718904716598,15.6424,133.88,133.82,45.51]
[1718904716798,15.6424,133.88,133.83,20.0]
[1718904716994,15.6424,133.88,133.84,45.0]
[1718904717301,15.6424,133.88,133.85,20.0]
[1718904717917,6.3922,133.9,133.86,67.63]
[1718904718217,255.1,134.08,133.86,67.63]
[1718904718218,15.346,133.97,133.88,55.42]
[1718904718512,15.346,133.97,133.9,22.46]
[1718904718741,15.346,133.97,133.89,65.51]
[1718904718742,15.346,133.97,133.92,22.46]
[1718904718922,6.1108,133.98,133.93,20.0]
[1718904719417,0.82163197,133.97,133.91,20.0]
[1718904720003,6.1108,133.98,133.91,20.0]
[1718904720305,6.1108,133.98,133.89,22.46]
[1718904720517,6.1108,133.98,133.9,65.0]
[1718904721542,6.1108,133.98,133.91,22.46]
[1718904721725,6.1108,133.98,133.92,65.0]
[1718904722237,6.1108,133.98,133.92,20.0]
[1718904722439,6.1108,133.98,133.91,20.0]
[1718904723115,6.1108,133.98,133.92,0.17]
[1718904723337,16.6506,134.01,133.93,22.46]
[1718904723537,16.6506,134.01,133.95,22.46]
[1718904723742,16.6506,134.01,133.96,20.0]
[1718904723950,6.3944,134.02,133.97,0.34]
[1718904724117,6.3944,134.02,133.97,22.8]
[1718904724323,6.3944,134.02,133.98,65.0]
[1718904724715,21.5004,134.05,133.98,65.0]
[1718904725135,21.5004,134.05,133.98,87.46]
[1718904725310,21.5004,134.05,133.99,1.48988796]
[1718904726421,21.5004,134.05,133.98,87.46]
[1718904727212,21.5004,134.05,133.98,65.0]
[1718904727918,21.5004,134.05,133.99,22.46]
[1718904728125,21.5004,134.05,134.0,20.0]
[1718904728349,21.5004,134.05,133.98,87.46]
[1718904728525,21.5004,134.05,133.98,65.0]
[1718904728928,21.5004,134.05,133.99,0.34]
[1718904729236,21.5004,134.05,133.98,65.0]
[1718904729426,21.5004,134.05,133.98,87.46]
[1718904730456,21.5004,134.05,133.99,0.34]
[1718904731522,22.0954,134.09,133.99,0.34]
[1718904731942,22.0954,134.09,134.0,0.17]
[1718904733329,22.0954,134.09,133.99,0.34]
[1718904733651,22.0954,134.09,133.98,42.46]
[1718904733821,0.82163197,134.08,133.98,42.46]
[1718904734027,0.82163197,134.08,133.98,20.0]
[1718904734231,6.589,134.07,133.98,20.0]
[1718904734439,6.589,134.07,133.99,20.0]
[1718904734639,6.589,134.07,133.97,42.46]
[1718904735747,0.82163197,134.06,133.97,42.46]
[1718904736046,15.3874,134.05,133.97,20.0]
[1718904736220,15.3874,134.05,133.94,20.0]
[1718904736921,15.3874,134.05,133.96,22.46]
[1718904737147,15.3874,134.05,133.98,22.46]
[1718904737335,15.3874,134.05,133.99,87.8]
[1718904737531,15.3874,134.05,133.99,22.63]
[1718904737749,15.3874,134.05,134.0,65.0]
[1718904738139,15.3874,134.05,134.0,87.46]
[1718904738339,6.589,134.07,134.01,0.17]
[1718904738536,6.589,134.07,134.01,0.51]
[1718904738743,6.589,134.07,134.01,0.34]
[1718904739046,6.589,134.07,134.0,87.46]
[1718904739522,6.589,134.07,134.01,0.51]
[1718904739855,6.589,134.07,134.01,1.53715954]
[1718904741239,6.589,134.07,134.01,23.99715954]
[1718904741430,6.589,134.07,134.02,87.46]
[1718904741633,6.589,134.07,134.02,67.46]
[1718904741840,6.589,134.07,134.03,20.0]
[1718904742526,6.589,134.07,133.99,32.96]
[1718904742527,6.589,134.07,134.0,20.0]
[1718904743340,15.0286,134.09,134.01,22.46]
[1718904743638,15.0286,134.09,134.03,22.46]
[1718904743954,15.0286,134.09,134.04,87.96216181]
[1718904744149,15.0286,134.09,134.05,1.52953378]
[1718904744748,15.0286,134.09,134.04,65.0]
[1718904745338,14.5286,134.09,134.04,65.0]